Cogmind - Beta 16.1 @@@ ROGUE MODE // 2026.03.11 @ 03:46:18 Player: RecursiveCharlatan Result: Destroyed by G-47 Trooper with Particle Gun Performance ------------- Evolutions (3) 1500 Regions Visited (9) 1800 Robots Destroyed (188) 940 Value Destroyed (7117) 7117 Prototype IDs (8) 160 Alien Tech Used (0) 0 Bonus (1988) 1988 TOTAL SCORE: 13505 Bonus ------- High Alert Combat Kills 88 Entered Garrisons 400 Used RIF Installer 1500 Cogmind --------- Core Integrity 0/700 Matter 123/300 Energy 93/100 System Corruption 3% Temperature Cool (9) Movement Core (1600) Ox31 Location -7/Factory Parts ------- > --- POWER (1) -------- (None) > --- PROPULSION (4) --- (None) > --- UTILITY (5) ------ Advanced Heat Sink Advanced Cooling System Huge Storage Unit Improved System Shield > --- WEAPON (3) ------- Minigun Gauss Rifle Heavy Machine Gun > --- INVENTORY (25) --- Advanced Heat Sink Enhanced Optical Array Improved Signal Interpreter Weapon Mount Layered Light Armor Plating Hacking Suite Hacking Suite Authchip [Propulsion] Relay Coupler [NC] (21) Relay Coupler [Sentry] (17) Lightning Gun Lightning Gun Heavy Assault Rifle Minigun Heavy Missile Launcher Remote Datajack Heavy Flail Peak State ------------ > --- POWER ------------ Nuclear Core > --- PROPULSION ------- Light Treads Light Treads Improved Carbon-fiber Leg Gravmag System > --- UTILITY ---------- Advanced Cooling System Huge Storage Unit Hardened Medium Armor Plating Hacking Suite Improved System Shield > --- WEAPON ----------- Lightning Gun Lightning Gun Gauss Cannon > --- INVENTORY -------- Nuclear Core Advanced Heat Sink Large Matter Pod Enhanced Optical Array Improved Signal Interpreter Weapon Mount Improved Medium Armor Plating Hacking Suite Hacking Suite Authchip [Propulsion] Relay Coupler [NC] Relay Coupler [Sentry] Gatling Laser Heavy Plasma Cannon Heavy Assault Rifle Minigun Advanced Assault Cannon Gauss Cannon Heavy Missile Launcher Remote Datajack Heavy Flail [Rating: 50] Favorites ----------- Power Nuclear Core Engine Light Deuterium Engine Power Core Nuclear Core Propulsion Light Treads Treads Light Treads Leg Aluminum Leg Wheel Wheel Hover Unit Gravmag System Utility Hacking Suite Device Advanced Heat Sink Storage Huge Storage Unit Processor Advanced Visual Processing Unit Hackware Hacking Suite Protection Hardened Medium Armor Plating Weapon Heavy Assault Rifle Energy Gun Lightning Gun Energy Cannon Heavy Plasma Cannon Ballistic Gun Heavy Assault Rifle Ballistic Cannon Gauss Cannon Launcher EMP Blaster Special Weapon Remote Datajack Impact Weapon Heavy Flail Build | -11 -10 -10 -9 -9 -8 -8 -8 -8 -7 ------- Run | Yrd Mat Min Mat Min Mat Gar Mat Gar Fac Slots Evolved 6 | . . . 2 . 2 . . . 2 Power . | . . . . . . . . . . Propulsion 2 | . . . 1 . . . . . 1 Utility 3 | . . . 1 . 1 . . . 1 Weapon 1 | . . . . . 1 . . . . Parts Attached 99 | 7 9 2 9 4 25 6 10 2 25 Power 13 | 1 . . 1 1 3 1 1 1 4 Engine 5 | 1 . . 1 1 1 . . . 1 Core 8 | . . . . . 2 1 1 1 3 Reactor . | . . . . . . . . . . Propulsion 20 | 2 2 . 4 . 5 1 2 . 4 Treads 15 | . 2 . 4 . 5 1 2 . 1 Leg 3 | 2 . . . . . . . . 1 Wheel 1 | . . . . . . . . . 1 Hover 1 | . . . . . . . . . 1 Flight . | . . . . . . . . . . Utility 28 | 2 5 . 2 1 5 2 4 . 7 Device 6 | 1 1 . . . 2 . . . 2 Storage 5 | 1 3 . . . . . 1 . . Processor 1 | . . . . . 1 . . . . Hackware 5 | . . . 1 . 1 1 2 . . Protection 11 | . 1 . 1 1 1 1 1 . 5 Artifact . | . . . . . . . . . . Weapon 38 | 2 2 2 2 2 12 2 3 1 10 Energy Gun 6 | 2 . . . . 2 1 . . 1 Energy Cannon 2 | . . . . . 1 . . . 1 Ballistic Gun 12 | . . . . 2 2 . 3 . 5 Ballistic Cannon 12 | . 2 1 2 . 5 1 . . 1 Launcher 4 | . . 1 . . 1 . . 1 1 Special Weapon 1 | . . . . . . . . . 1 Impact Weapon 1 | . . . . . 1 . . . . Slashing Weapon . | . . . . . . . . . . Piercing Weapon . | . . . . . . . . . . Special Melee Weapon . | . . . . . . . . . . Unidentified Prototypes 1 | . . . . . 1 . . . . Parts Lost 44 | . . . 1 2 10 2 . 2 27 Power 9 | . . . 1 . 3 . . 1 4 Propulsion 13 | . . . . . 3 . . . 10 Utility 10 | . . . . 1 1 1 . . 7 Weapon 12 | . . . . 1 3 1 . 1 6 Highest Loss Streak 7 | . . . 1 2 5 1 . 1 7 To Critical Strikes 1 | . . . . . . . . . 1 Average Backups 21 | 3 9 14 20 23 23 24 24 24 22 Power 1 | . 1 1 1 1 . 1 1 2 1 Propulsion 1 | 1 1 . 1 2 1 2 2 2 1 Utility 10 | . 4 7 10 11 10 11 10 10 11 Weapon 8 | . 3 6 7 9 10 10 8 8 8 Tool/Special . | . . . . . . . . . . Unused Backups 32 | . 5 . 10 . 3 1 2 1 10 Power 2 | . 1 . 1 . . . . . . Propulsion 1 | . . . 1 . . . . . . Utility 19 | . 4 . 4 . . . 1 . 10 Weapon 9 | . . . 4 . 3 1 1 . . Tool/Special 1 | . . . . . . . . 1 . Average Slot Usage (%) 97 | . 100 100 97 99 97 99 99 99 89 Engine 4 | . 14 14 10 10 1 . . . . Core 5 | . . . . . 6 9 9 8 5 Treads 25 | . 10 28 31 33 26 27 26 27 20 Leg 1 | . 17 . . . . . . . . Device 2 | . 9 . . . 5 1 . . 3 Storage 9 | . 14 14 11 11 9 9 9 9 7 Hackware 12 | . . . 10 11 11 16 18 18 13 Protection 8 | . 4 14 11 11 5 9 8 9 10 Energy Gun 2 | . 18 . . . 3 2 1 . 3 Ballistic Gun 10 | . . . . 11 8 17 16 18 12 Ballistic Cannon 10 | . 9 24 22 9 10 6 8 6 4 Peak Build Rating 50 | 7 12 12 24 23 38 38 39 39 50 Average Rating 30 | 4 8 12 21 20 34 34 37 35 41 On Entrance 21 | . 7 12 12 21 20 38 35 36 34 Avg Prop Armor Cover (%) 6 | . . . . . . . . 7 6 Naked Turns . | . . . . . . . . . . Heaviest Build 120 | 12 96 36 102 103 107 107 110 107 120 Greatest Support 83 | 20 40 40 60 60 66 63 63 63 83 Greatest Overweight (x) 32 | . 2 . 1 1 5 1 1 2 32 Average Overweight (x) 1 | . . . . 1 1 1 1 1 2 Largest Inventory Capacity 25 | 8 25 15 25 25 25 25 25 25 25 Average Capacity 23 | 6 14 15 21 25 25 25 25 25 25 Most Carried 25 | 4 16 15 25 25 25 25 25 25 25 Average Carried 21 | 3 9 14 20 23 23 24 24 24 22 Final Capacity 25 | 8 15 15 25 25 25 25 25 25 25 Final Carried 25 | 4 15 14 25 23 25 25 25 25 17 Class Distribution -------------------- 38% | Hacker-Tank 33% | Mutant 7% | Scavenger-Tank 4% | Hacker-Mutant 3% | Tank 3% | Scavenger-Mutant 3% | Skirmisher Dominant Class ---------------- Mutant | -10/Materials Mutant | -10/Mines Mutant | -9/Materials Mutant | -9/Mines Skirmisher | -8/Materials Hacker-Tank | -8/Garrison Hacker-Tank | -8/Materials Hacker-Tank | -8/Garrison Hacker-Tank | -7/Factory Resources | -11 -10 -10 -9 -9 -8 -8 -8 -8 -7 ----------- Run | Yrd Mat Min Mat Min Mat Gar Mat Gar Fac Matter Collected 5746 | 234 202 214 710 178 1005 587 747 609 1260 Remotely . | . . . . . . . . . . Salvage Created 6186 | 23 463 138 910 146 925 693 836 624 1428 Parts 334 | 4 31 9 61 20 51 30 36 34 58 Haulers Intercepted 3 | . 2 . 1 . . . . . . Recyclers Shooed 1 | . . . . . . . . . 1 Parts Field Recycled . | . . . . . . . . . . Retrieved Matter . | . . . . . . . . . . Parts Self-Destructed . | . . . . . . . . . . Prevented . | . . . . . . . . . . Parts Restored . | . . . . . . . . . . Kills | -11 -10 -10 -9 -9 -8 -8 -8 -8 -7 ------- Run | Yrd Mat Min Mat Min Mat Gar Mat Gar Fac Combat Hostiles Destroyed 159 | . 14 3 28 8 24 18 16 15 33 Guns 59 | . 11 . . 3 5 11 9 8 12 Cannons 91 | . 3 3 28 5 18 7 7 7 13 AOE 8 | . . . . . . . . . 8 Classes Destroyed 17 | 1 5 1 2 . 1 1 . 2 4 Worker 6 | . 1 . 2 . . . . . 3 Builder 4 | . . . . . 3 . . . 1 Tunneler 2 | 1 . . . 1 . . . . . Hauler 3 | . 2 . 1 . . . . . . Recycler 6 | . . 2 . . . . 1 . 3 Mechanic 1 | . . . . . . . . . 1 Watcher 7 | . 2 . 1 . . . 2 . 2 Swarmer 31 | . 11 3 4 6 2 3 2 . . Cutter 2 | . . . . . . . . 2 . Grunt 68 | . 3 . 14 2 15 13 7 5 9 Brawler 4 | . . . 1 . 1 . . 1 1 Protector 1 | . . . . . . . . . 1 Sentry 27 | . . . 9 . 6 1 6 3 2 Specialist 5 | . . . . . . . . . 5 Hunter 8 | . . . . . . 1 1 . 6 Programmer 12 | . . . . . . . . 4 8 Heavy 1 | . . . . . . . . . 1 Best Kill Streak 12 | 1 6 3 5 4 5 7 4 5 12 Combat Bots Only 10 | . 3 3 4 3 4 7 3 5 10 Max Kills in Single Turn 7 | 1 2 1 2 1 2 1 1 1 7 Gunslinging 1 | . 1 . . . . . . . . Exploded 5 | . . . . . . . . . 5 Melee . | . . . . . . . . . . Uniques/NPCs Destroyed . | . . . . . . . . . . Combat | -11 -10 -10 -9 -9 -8 -8 -8 -8 -7 -------- Run | Yrd Mat Min Mat Min Mat Gar Mat Gar Fac Hostile Shots Fired 1022 | . 50 11 77 35 165 94 75 109 406 Missed 296 | . 16 6 17 6 36 40 15 37 123 Hits 726 | . 34 5 60 29 129 54 60 72 283 Melee 9 | . . . 1 . . . . 7 1 Projectile 717 | . 34 5 59 29 129 54 60 65 282 AOE 3 | . . . . . . . . 2 1 Critical Strikes 39 | . . . 3 1 5 . 6 7 17 Part Disruptions 1 | . . . . . . . . 1 . Damage Taken 10563 | . 286 38 837 276 1965 793 878 1138 4352 Core 1235 | . 65 . 72 10 206 17 52 110 703 Absorbed by Shields 42 | . . . . . . 42 . . . Ignored by Resistances 10 | . . . . . . . . . 10 Regen/Repaired (Parts) 1301 | . . . 86 . 178 . 806 . 231 Core Remaining (%) 70 | 100 . 74 . 79 . . . 30 . Volleys Fired 445 | 1 55 9 62 17 59 47 50 37 108 Largest 3 | 2 2 2 2 2 3 3 3 3 3 Hottest 185 | 90 90 66 74 74 142 101 133 86 185 Shots Fired 1088 | 2 110 18 123 31 161 129 125 109 280 Gun 609 | 2 98 . . 11 66 100 97 84 151 Cannon 474 | . 12 18 123 20 95 29 28 25 124 Launcher 4 | . . . . . . . . . 4 Special 1 | . . . . . . . . . 1 Kinetic 877 | . 12 18 123 31 146 120 109 109 209 Thermal 155 | 2 98 . . . 13 . . . 42 Explosive 4 | . . . . . . . . . 4 Electromagnetic 51 | . . . . . 2 9 16 . 24 Robot Hit Streak 25 | 1 6 3 10 4 13 16 14 12 25 Robot Miss Streak 5 | . 4 4 4 3 3 3 3 5 5 Penetration Max 1 | . . . . . 1 1 1 1 1 Secondary Targets 1 | . 1 . . . . . . . . Max Gunslinging Chain 1 | . 1 . . . . . . . . Shots Hit Robots 697 | 1 63 9 75 15 105 88 83 72 186 Core Hits 295 | 1 25 5 32 10 44 36 35 29 78 Critical Kills 3 | . . . . . 1 1 . . 1 Critical Parts Destroyed 2 | . . . . . . . 1 . 1 Critical Strikes 38 | . 3 1 3 . 9 3 7 1 11 Burn 3 | . 3 . . . . . . . . Meltdown 1 | . . . . . 1 . . . . Destroy 4 | . . . . . . 1 1 . 2 Blast 28 | . . 1 3 . 7 2 5 1 9 Corrupt 2 | . . . . . 1 . 1 . . Melee Attacks 16 | . . . . . 4 4 1 4 3 Impact 16 | . . . . . 4 4 1 4 3 Slashing . | . . . . . . . . . . Piercing . | . . . . . . . . . . Sneak Attacks . | . . . . . . . . . . Combat Hostiles . | . . . . . . . . . . Follow-up Attacks . | . . . . . . . . . . Damage Inflicted 16552 | 12 848 204 1990 328 2426 1520 1654 1410 6160 Guns 6839 | 12 702 . . 108 815 999 1111 974 2118 Cannons 7978 | . 146 204 1984 220 1611 521 543 436 2313 Explosions 1729 | . . . . . . . . . 1729 Melee . | . . . . . . . . . . Ramming 6 | . . . 6 . . . . . . Kinetic 12376 | . 146 204 1984 328 2213 1411 1488 1410 3192 Thermal 1813 | 12 702 . . . 168 . . . 931 Explosive 1729 | . . . . . . . . . 1729 Electromagnetic 628 | . . . . . 45 109 166 . 308 Impact . | . . . . . . . . . . Slashing . | . . . . . . . . . . Piercing . | . . . . . . . . . . Highest Corruption 3 | . . . . . . . . 2 3 Average Corruption 2 | . . . . . . . . 1 2 Corruption Purged . | . . . . . . . . . . Corruption Blocked . | . . . . . . . . . . Effects 30 | . . . . . . . . 16 14 Message Errors 4 | . . . . . . . . 1 3 Matter Fused 10 | . . . . . . . . 7 3 Heat Flow Errors 7 | . . . . . . . . 4 3 Energy Discharges 5 | . . . . . . . . 3 2 Parts Rejected 1 | . . . . . . . . . 1 Data Loss (major) 1 | . . . . . . . . . 1 Misfires 2 | . . . . . . . . 1 1 Overload Shots . | . . . . . . . . . . Overflow Damage 168 | . 2 19 48 3 20 7 . . 69 Projectiles 142 | . 2 19 48 3 20 7 . . 43 Explosions 26 | . . . . . . . . . 26 Melee . | . . . . . . . . . . Knockbacks 55 | . 1 4 10 1 15 1 4 3 16 Impact . | . . . . . . . . . . Kinetic 51 | . 1 3 9 1 14 1 3 3 16 Secondary 4 | . . 1 1 . 1 . 1 . . Self-Inflicted Damage 91 | . . . . . . . . . 91 Shots 4 | . . . . . . . . . 4 Rammed 1 | . . . 1 . . . . . . Targets Rammed 1 | . . . 1 . . . . . . Kicked . | . . . . . . . . . . Crushed . | . . . . . . . . . . Highest Temperature 385 | 30 210 126 189 58 232 191 281 385 331 Average Temperature 71 | 17 68 48 39 40 72 85 80 86 89 Received Heat Transfer 3459 | . 42 . 357 66 1071 315 387 180 1041 Effects 3 | . 2 . . . . . . 1 . Interference 2 | . 2 . . . . . . . . Matter Decay 1 | . . . . . . . . 1 . Siege Activations . | . . . . . . . . . . Martial Activations . | . . . . . . . . . . Shielding Activations . | . . . . . . . . . . Robots Disrupted . | . . . . . . . . . . Combat Hostiles . | . . . . . . . . . . Robots Corrupted . | . . . . . . . . . . Combat Hostiles . | . . . . . . . . . . Parts Fried 2 | . . . . . . 1 . . 1 Impact Corruptions 1 | . . . 1 . . . . . . Robots Melted 1 | . . . . . 1 . . . . Combat Hostiles 1 | . . . . . 1 . . . . Parts Melted 8 | . 7 . . . 1 . . . . Heat Transferred 3967 | 37 2009 . . . 296 . . . 1625 Parts Sabotaged . | . . . . . . . . . . Parts Stolen . | . . . . . . . . . . Parts Stripped . | . . . . . . . . . . Power Chain Reactions . | . . . . . . . . . . Alert | -11 -10 -10 -9 -9 -8 -8 -8 -8 -7 ------- Run | Yrd Mat Min Mat Min Mat Gar Mat Gar Fac Maximum Alert Level 2 | . . . 2 1 . 2 1 1 1 Low Security (%) 77 | 100 100 100 55 88 100 13 83 48 83 Level 1 17 | . . . 27 11 . 50 16 51 16 Level 2 4 | . . . 17 . . 35 . . . Level 3 . | . . . . . . . . . . Level 4 . | . . . . . . . . . . Level 5 . | . . . . . . . . . . High Security . | . . . . . . . . . . Max Security . | . . . . . . . . . . Peak Influence 595 | 5 132 100 518 248 155 595 289 363 297 Initial 289 | . . 23 . 196 . 62 289 31 190 Average 134 | . 59 17 192 82 76 340 139 229 100 Influence Increases 5027 | 5 414 110 969 202 815 553 621 352 986 Destroy 0b10 Robot/C 3160 | . 280 60 560 160 480 360 320 300 640 Destroy 0b10 Robot/NC 150 | 5 25 10 20 5 15 . 15 . 55 Destroy Leader 750 | . 48 10 174 30 120 30 114 30 194 Successful Hack 155 | . . . 43 . 26 10 22 18 36 Select Force Hacks 90 | . 30 . 60 . . . . . . Disable Machine 195 | . . 30 30 . 60 . 60 . 15 Anti-Garrison Action 100 | . . . . . . 100 . . . Destroy Structure 142 | . 1 . 22 7 39 8 15 4 46 Partial Spotted 15 | . . . . . . . 15 . . Lose Combat Pursuer 270 | . 30 . 60 . 75 45 60 . . Influence Decreases 4764 | 5 353 171 463 708 719 54 1167 38 1086 Entered New Map 879 | . . 38 . 310 . 34 306 18 173 Time Decay 3171 | 5 353 133 453 378 619 . 737 . 493 Lost Part 440 | . . . 10 20 100 20 . 20 270 Purge Threat 274 | . . . . . . . 124 . 150 Squads Dispatched 28 | . 2 . 6 . 7 . 1 . 12 Investigation 7 | . 1 . 3 . 1 . . . 2 Extermination 5 | . . . . . . . . . 5 Reinforcement 11 | . 1 . 2 . 3 . 1 . 4 Assault 1 | . . . 1 . . . . . . Garrison 4 | . . . . . 3 . . . 1 Intercept . | . . . . . . . . . . Searches Triggered . | . . . . . . . . . . Construction Impeded 3 | . . . . . 1 . 1 . 1 Haulers Reinforced . | . . . . . . . . . . Active Scanning Responses . | . . . . . . . . . . Cargo Convoy Interrupts 1 | . . . . . . . . . 1 Stealth | -11 -10 -10 -9 -9 -8 -8 -8 -8 -7 --------- Run | Yrd Mat Min Mat Min Mat Gar Mat Gar Fac Distress Signals 17 | . 2 . 6 . 2 . 6 . 1 Communications Jammed . | . . . . . . . . . . Distress Signals . | . . . . . . . . . . Times Spotted 245 | . 27 3 44 8 36 22 41 15 49 Peak Tracking Total 12 | . 4 3 5 3 5 4 5 4 12 Tactical Retreats 13 | . 1 . 4 . 4 2 2 . . Traps | -11 -10 -10 -9 -9 -8 -8 -8 -8 -7 ------- Run | Yrd Mat Min Mat Min Mat Gar Mat Gar Fac Traps Triggered 11 | . . . 1 . 2 2 . 4 2 Indirectly . | . . . . . . . . . . Trap Hack Attempts . | . . . . . . . . . . Triggered . | . . . . . . . . . . Disarmed . | . . . . . . . . . . Reprogrammed . | . . . . . . . . . . Reused . | . . . . . . . . . . Traps Extracted . | . . . . . . . . . . Installed . | . . . . . . . . . . Triggered . | . . . . . . . . . . Machines | -11 -10 -10 -9 -9 -8 -8 -8 -8 -7 ---------- Run | Yrd Mat Min Mat Min Mat Gar Mat Gar Fac Machines Disabled 15 | . . 2 2 . 4 2 4 . 1 Max in Single Turn 1 | . . 1 1 . 1 1 1 . 1 Garrison Access 2 | . . . . . . . . . 2 Garrison Relay 2 | . . . . . . 2 . . . Machines Repaired . | . . . . . . . . . . Machines Dismantled . | . . . . . . . . . . Machines Sabotaged . | . . . . . . . . . . Overloaded Fab Kills . | . . . . . . . . . . Hacking | -11 -10 -10 -9 -9 -8 -8 -8 -8 -7 --------- Run | Yrd Mat Min Mat Min Mat Gar Mat Gar Fac Machines Accessed 53 | . 8 . 13 1 9 1 10 1 10 Terminals 32 | . 6 . 9 1 5 1 6 1 3 Fabricators 1 | . . . . . . . . . 1 Repair Stations 6 | . . . 1 . 2 . 2 . 1 Recycling Units 6 | . 2 . 2 . . . . . 2 Scanalyzers 4 | . . . 1 . 1 . 1 . 1 Garrison Access 4 | . . . . . 1 . 1 . 2 Total Hacks 178 | . 25 . 42 2 30 2 52 3 22 Successful 109 | . 11 . 21 1 26 1 34 2 13 Failed 66 | . 13 . 21 1 3 1 17 1 9 Catastrophic 7 | . 1 . 1 . 2 . . 1 2 Database Lockouts 3 | . 1 . . . 1 . 1 . . Manual 101 | . 22 . 30 3 13 . 27 2 4 Terminals 120 | . 21 . 30 2 15 2 37 3 10 Fabricators 3 | . . . . . . . . . 3 Repair Stations 24 | . . . 4 . 6 . 11 . 3 Recycling Units 10 | . 4 . 4 . . . . . 2 Scanalyzers 16 | . . . 4 . 8 . 3 . 1 Garrison Access 5 | . . . . . 1 . 1 . 3 Terminal Hacks 35 | . 3 . 7 1 6 1 12 2 3 Part Schematic 1 | . . . 1 . . . . . . Robot Analysis 4 | . 1 . 1 . 1 . 1 . . Prototype ID Bank 3 | . . . 1 . . . 2 . . Level Access Points 1 | . . . 1 . . . . . . Emergency Access Points 1 | . . . . . . . . 1 . Terminal Index 3 | . . . . . 1 . 1 . 1 Repair Station Index 1 | . . . . . . . 1 . . Recycling Unit Index 2 | . 1 . 1 . . . . . . Alert Level 5 | . . . 1 1 3 . . . . Unreport Threat 2 | . . . . . . . 1 . 1 Locate Traps 4 | . . . . . 1 . 2 . 1 Patrol Status 1 | . . . . . . . 1 . . Hauler Manifests 3 | . 1 . 1 . . . 1 . . Zone Layout 2 | . . . . . . . 2 . . Garrison Registry 2 | . . . . . . 1 . 1 . Fabricator Hacks 2 | . . . . . . . . . 2 Network Status 1 | . . . . . . . . . 1 Load Schematic 1 | . . . . . . . . . 1 Repair Station Hacks 20 | . . . 2 . 6 . 10 . 2 Scan Component 10 | . . . 1 . 3 . 5 . 1 Repair 10 | . . . 1 . 3 . 5 . 1 Recycling Unit Hacks 1 | . . . . . . . . . 1 Retrieve Components 1 | . . . . . . . . . 1 Scanalyzer 15 | . . . 4 . 8 . 2 . 1 Insert Component 6 | . . . 2 . 3 . 1 . . Analyze 5 | . . . 1 . 3 . 1 . . Retrieve Study 4 | . . . 1 . 2 . . . 1 Garrison Access Hacks 5 | . . . . . 1 . 1 . 3 Unlock Access 2 | . . . . . 1 . 1 . . Seal Access 2 | . . . . . . . . . 2 Coupler Status 1 | . . . . . . . . . 1 Unauthorized Hacks 31 | . 8 . 8 . 5 . 9 . 1 Terminals 27 | . 7 . 6 . 5 . 9 . . Botnet 3 | . 1 . . . . . 2 . . Operators 3 | . 1 . . . . . 2 . . Skim 21 | . 5 . 6 . 5 . 5 . . Fabricators 1 | . . . . . . . . . 1 Recompile 1 | . . . . . . . . . 1 Repair Stations . | . . . . . . . . . . Recycling Units 3 | . 1 . 2 . . . . . . Tunnel 3 | . 1 . 2 . . . . . . Scanalyzers . | . . . . . . . . . . Garrison Access . | . . . . . . . . . . Data Cores Recovered . | . . . . . . . . . . Used . | . . . . . . . . . . Hacking Detections 42 | . 7 . 10 1 8 1 8 1 6 Full Trace Events . | . . . . . . . . . . Feedback Events . | . . . . . . . . . . Feedback Blocked . | . . . . . . . . . . Robot Schematics Acquired . | . . . . . . . . . . Robots Built . | . . . . . . . . . . Authchips . | . . . . . . . . . . Time . | . . . . . . . . . . Total Robot Build Rating . | . . . . . . . . . . Part Schematics Acquired 6 | . . . 2 . 3 . 1 . . Parts Built . | . . . . . . . . . . Authchips . | . . . . . . . . . . Time . | . . . . . . . . . . Total Part Build Rating . | . . . . . . . . . . Part Studies Acquired 4 | . . . 1 . 2 . . . 1 Parts Repaired 10 | . . . 1 . 3 . 5 . 1 Time 271 | . . . 13 . 108 . 131 . 19 Parts Recycled . | . . . . . . . . . . Recycled Matter . | . . . . . . . . . . Retrieved Matter . | . . . . . . . . . . Retrieved Components 10 | . . . . . . . . . 10 Parts Scanalyzed 5 | . . . 1 . 3 . 1 . . Part Schematics Acquired 5 | . . . 1 . 3 . 1 . . Parts Damaged . | . . . . . . . . . . Bothacking | -11 -10 -10 -9 -9 -8 -8 -8 -8 -7 ------------ Run | Yrd Mat Min Mat Min Mat Gar Mat Gar Fac Used RIF Installer 3 | . . . . . . 1 . 2 . Command Fork 1 | . . . . . . . . 1 . Program Shield 1 | . . . . . . . . 1 . Robots Hacked 1 | . . . . . . . . . 1 Non-combat 1 | . . . . . . . . . 1 Combat . | . . . . . . . . . . Robot Hacks Applied 1 | . . . . . . . . . 1 find_chute 1 | . . . . . . . . . 1 Relay Couplers Released 13 | . . . . . . 10 . 3 . Machine Destruction 10 | . . . . . . 10 . . . Programmers 3 | . . . . . . . . 3 . Attached 1 | . . . . . . . 1 . . Fabnet Peak Effective % . | . . . . . . . . . . Robots Rewired . | . . . . . . . . . . Allies Hacked . | . . . . . . . . . . Hacks Repelled . | . . . . . . . . . . Allies | -11 -10 -10 -9 -9 -8 -8 -8 -8 -7 -------- Run | Yrd Mat Min Mat Min Mat Gar Mat Gar Fac Total Allies . | . . . . . . . . . . Largest Group . | . . . . . . . . . . Highest-Rated Group . | . . . . . . . . . . Highest-Rated Ally . | . . . . . . . . . . Total Orders . | . . . . . . . . . . Ally Attacks . | . . . . . . . . . . Total Damage . | . . . . . . . . . . Kills . | . . . . . . . . . . Allies Corrupted . | . . . . . . . . . . Allies Melted . | . . . . . . . . . . Intel | -11 -10 -10 -9 -9 -8 -8 -8 -8 -7 ------- Run | Yrd Mat Min Mat Min Mat Gar Mat Gar Fac Active Infowar (turns) 1027 | 22 404 . . . 601 . . . . Optics 601 | . . . . . 601 . . . . Seismic 426 | 22 404 . . . . . . . . Robot Analysis Total 4 | . 1 . 1 . 1 . 1 . . Derelict Logs Recovered 1 | . . . . 1 . . . . . Drone Launches . | . . . . . . . . . . Drone Recoveries . | . . . . . . . . . . Exploration | -11 -10 -10 -9 -9 -8 -8 -8 -8 -7 ------------- Run | Yrd Mat Min Mat Min Mat Gar Mat Gar Fac Turns Passed 16544 | 62 1241 791 2067 1159 2436 1101 3935 1189 2563 Spaces Moved 5609 | 43 560 415 884 518 802 392 707 432 856 Core 10 | 9 . . . . . . . . 1 Treads 5089 | . 195 415 884 518 802 392 707 432 744 Legs 404 | 34 365 . . . . . . . 5 Wheels 106 | . . . . . . . . . 106 Hover . | . . . . . . . . . . Flight . | . . . . . . . . . . Fastest Speed 50 | 50 120 160 160 200 200 229 229 200 200 Average Speed 208 | 105 157 160 185 200 231 229 233 236 231 Slowest Speed 1650 | 120 320 160 200 200 480 229 246 280 1650 Overloaded Moves . | . . . . . . . . . . Propulsion Burnouts . | . . . . . . . . . . Robots Hopped . | . . . . . . . . . . Potential Cave-ins . | . . . . . . . . . . Cave-ins Triggered . | . . . . . . . . . . Exploration Rate (%) 56 | 3 89 69 68 95 55 54 62 48 26 Regions Visited 9 Branch Regions 2 Pre-discovered Areas 9 | . 3 . 2 . 2 . 2 . . Known Exits Taken 5 | . . 1 1 1 1 . 1 . . Unknown Exits Taken 2 | 1 1 . . . . . . . . Scrap Searched 2 | . . . . 2 . . . . . Spaces Dug 24 | . . . 3 . 8 3 3 4 3 Terrain Destroyed 142 | . . . 21 8 37 3 13 4 56 Melee 14 | . . . . . 4 3 1 4 2 Projectile 96 | . . . 21 8 33 . 12 . 22 AOE 32 | . . . . . . . . . 32 Terrain Rammed . | . . . . . . . . . . Walls Destroyed . | . . . . . . . . . . Machines Disabled . | . . . . . . . . . . Actions | -11 -10 -10 -9 -9 -8 -8 -8 -8 -7 --------- Run | Yrd Mat Min Mat Min Mat Gar Mat Gar Fac Total 9514 | 54 811 524 1190 610 1249 485 2882 507 1202 Wait 3109 | . 160 96 190 72 319 12 2083 11 166 Move 5600 | 42 559 414 883 517 801 391 706 431 856 Hop . | . . . . . . . . . . Pick Up 92 | 4 19 1 23 . 18 6 7 3 11 Fast Attach 37 | 7 . . 5 1 11 . 2 1 10 Attach 37 | . 2 . . 2 12 2 2 2 15 Detach 9 | . . . 1 . 6 . 2 . . Swap 96 | . 7 2 6 1 10 16 20 9 25 Drop 60 | . 9 2 19 . 9 5 9 1 6 Fire 445 | 1 55 9 62 17 59 47 50 37 108 Melee 16 | . . . . . 4 4 1 4 3 Ram . | . . . . . . . . . . Kick . | . . . . . . . . . . Crush 1 | . . . 1 . . . . . . Escape Stasis 12 | . . . . . . 2 . 8 2 Rewire . | . . . . . . . . . . Trap . | . . . . . . . . . . Miscellaneous . | . . . . . . . . . . Route ------- -11/Scrapyard -10/Materials (discovered 4 exits: *Mat x2 / [*Min] / *Sub) -10/Mines (discovered 2 exits: *Mat / Sub) -9/Materials (discovered 6 exits: *Mat x3 / *Min x2 / Sto) -9/Mines (discovered 4 exits: *Mat x2 / [*Exi] / [*Zio]) -8/Materials (discovered 4 exits: *Fac x3 / Gar) -8/Garrison (discovered 3 exits: *Mat x3) -8/Materials (discovered 4 exits: Fac x3 / Gar) -8/Garrison (discovered 3 exits: *Fac x3) -7/Factory (discovered 2 exits: *Low x2) History --------- Turn | Location | Event 8 | -11/Scrapyard | Discovered new exit (range 15) 63 | -11/Scrapyard | Entered Materials 304 | -10/Materials | Build established: Mutant 610 | -10/Materials | Discovered new exit (range 16) 727 | -10/Materials | Discovered new exit (range 6) 806 | -10/Materials | Central database locked down 943 | -10/Materials | Learned location of 1 exit from Storage 955 | -10/Materials | Loaded intel: 36 machine locations 956 | -10/Materials | Learned Recycling recycling unit intel 957 | -10/Materials | Learned 4 Subcaves zone layouts 961 | -10/Materials | Identified exit to Subcaves 976 | -10/Materials | Learned location of Storage (-9) 999 | -10/Materials | Learned location of 2 exits from Mines 1180 | -10/Materials | Discovered new exit (range 11) 1304 | -10/Materials | Entered Mines 1305 | -10/Mines | Identified exit to Materials 1435 | -10/Mines | Assembled infested the area 1834 | -10/Mines | Received a Rocket Launcher from a helpful Derelict 2095 | -10/Mines | Entered Materials 2095 | -9/Materials | Evolved 2 slots: Propulsion x1, Utility x1 2096 | -9/Materials | Identified exit to Storage 2894 | -9/Materials | Discovered new exit (range 14) 3065 | -9/Materials | Identified exit to Materials 3065 | -9/Materials | Identified exit to Mines 3117 | -9/Materials | Learned Storage security intel 3185 | -9/Materials | Loaded intel: 12 terminal locations 3202 | -9/Materials | Learned location of 1 exit from Recycling 3274 | -9/Materials | Learned Storage emergency access door positions 3394 | -9/Materials | Repaired Lgt. Treads+ 4095 | -9/Materials | First assault squad dispatched 4162 | -9/Materials | Entered Mines 4174 | -9/Mines | Met a Derelict bent on vengeance 4420 | -9/Mines | Found a hidden stash of uninstalled traps 4749 | -9/Mines | Deemed a non-threat by the Exiles lab entrance 4749 | -9/Mines | Discovered new exit (range 5) 4838 | -9/Mines | A Derelict revealed a hidden shortcut to a safe place 5321 | -9/Mines | Entered Materials 5321 | -8/Materials | Evolved 2 slots: Utility x1, Weapon x1 5344 | -8/Materials | Build established: Scavenger-Mutant 5365 | -8/Materials | Garrison activated, responded to threat 5408 | -8/Materials | Lost 3 parts (1p1n1w) 5455 | -8/Materials | Lost 5 parts (2n1u2w) 5970 | -8/Materials | Build established: Skirmisher 6286 | -8/Materials | Repaired Hvy. Assault Rifle+ 6337 | -8/Materials | Repaired Adv. Heat Sink 6509 | -8/Materials | Discovered new exit (range 12) 6587 | -8/Materials | Repaired Lgt. Treads+ 6608 | -8/Materials | Build established: Hacker-Tank 7082 | -8/Materials | Central database locked down 7195 | -8/Materials | Learned 2 Lower Caves zone layouts 7214 | -8/Materials | Identified exit to Factory 7222 | -8/Materials | Learned Factory emergency access door positions 7223 | -8/Materials | Learned Storage stockpile data 7225 | -8/Materials | Learned Storage terminal intel 7234 | -8/Materials | Learned Storage emergency access door positions 7642 | -8/Materials | Build established: Mutant 7746 | -8/Materials | Identified exit to Garrison 7757 | -8/Materials | Entered Garrison 7945 | -8/Garrison | Triggered checkpoint 7972 | -8/Garrison | Discovered new exit (range 58) 7972 | -8/Garrison | Discovered new exit (range 60) 7972 | -8/Garrison | Discovered new exit (range 76) 8226 | -8/Garrison | Destroyed 7 combat bots 8293 | -8/Garrison | Build established: Hacker-Tank 8386 | -8/Garrison | Installed Relay Interface Framework 8470 | -8/Garrison | Garrison Relay disabled 8555 | -8/Garrison | Triggered checkpoint 8697 | -8/Garrison | Triggered checkpoint 8741 | -8/Garrison | Garrison Relay disabled 8793 | -8/Garrison | Triggered checkpoint 8858 | -8/Garrison | Entered Materials 9241 | -8/Materials | Identified exit to Garrison 9295 | -8/Materials | Repaired Imp. Treads 9316 | -8/Materials | Repaired Arm. Treads 9780 | -8/Materials | Central database locked down 9829 | -8/Materials | Learned 4 Factory zone layouts 9852 | -8/Materials | Learned Storage emergency access door positions 9865 | -8/Materials | Learned location of Zion (-7) 9870 | -8/Materials | Learned Factory stockpile data 9871 | -8/Materials | Learned location of 1 exit from Lower Caves 9886 | -8/Materials | Learned Factory security intel 10791 | -8/Materials | Repaired Hrd. Medium Armor Plating 10825 | -8/Materials | Repaired Hvy. Assault Rifle+ 10852 | -8/Materials | Repaired Lgt. Treads+ 12793 | -8/Materials | Entered Garrison 12889 | -8/Garrison | Core integrity fell below 50% 13089 | -8/Garrison | Triggered checkpoint 13260 | -8/Garrison | Discovered exit to Factory (range 12) 13358 | -8/Garrison | Triggered checkpoint 13465 | -8/Garrison | Discovered exit to Factory (range 58) 13465 | -8/Garrison | Discovered exit to Factory (range 79) 13465 | -8/Garrison | Discovered exit to Factory (range 24) 13673 | -8/Garrison | Triggered checkpoint 13804 | -8/Garrison | Expanded RIF knowledge: Command Fork 13813 | -8/Garrison | Build established: Scavenger-Tank 13886 | -8/Garrison | Expanded RIF knowledge: Program Shield 13982 | -8/Garrison | Entered Factory 13982 | -7/Factory | Evolved 2 slots: Propulsion x1, Utility x1 13983 | -7/Factory | Identified exit to Lower Caves 14180 | -7/Factory | Repaired Hrd. Medium Armor Plating 14972 | -7/Factory | Watched by a mysterious "MATRIX" hacker. 15450 | -7/Factory | Cargo convoy interrupted 15490 | -7/Factory | Lost 3 parts (2n1u) 15492 | -7/Factory | Destroyed 10 combat bots 15652 | -7/Factory | Build established: Hacker-Tank 16053 | -7/Factory | Lost 5 parts (1p2n2u) 16099 | -7/Factory | Core integrity fell below 50% 16105 | -7/Factory | Lost 4 parts (1p2n1w) 16162 | -7/Factory | Lost 3 parts (2u1w) 16485 | -7/Factory | Garrison activated, responded to threat 16515 | -7/Factory | Core integrity fell below 20% 16545 | -7/Factory | Destroyed by G-47 Trooper with Particle Gun Last Messages --------------- 16511_ Hvy. Machine Gun destroyed. 16513_ U-05 Engineer destroyed. 16516_ U-05 Engineer builds a Wall. 16518_ Slug penetrates Y-54 Guardian. 16522_ Imp. Light Armor Plating destroyed. 16526_ Y-54 Guardian heat short circuits Lgt. Treads. 16526_ U-05 Engineer builds a Wall. 16527_ Hvy. Plasma Cannon destroyed. 16529_ Y-54 Guardian heat damages Imp. Heat Sink. 16529_ Slug penetrates Y-54 Guardian. 16532_ Y-54 Guardian suffers critical hit (Destroy). 16532_ Destroyed Imp. Deuterium Engine. 16532_ Y-54 Guardian destroyed. 16535_ Slug penetrates G-47 Trooper. 16536_ M-13 Machinist repairs G-47 Trooper. 16536_ Lgt. Nuclear Core destroyed. 16540_ G-47 Trooper destroyed. Map ----- +----------------------------------------------------+ | ?????????????????????????????????????????????????? | | ?????????????????????????????????????????????????? | | ?????????????????????????????????????????????????? | | ?????????????????????????????????????????????????? | | ?????????????????????????????????????????????????? | | ?????????????????????????????????????????????????? | | ?????????????????????????????????????????????????? | | !????????????????????????????????????????????????? | | ?????????????????????????????????????????????????? | | ?????????????????????????????????????????????????? | | ????????????????????????? ???????????????????????? | | ????????????????????????? ???????????????????????? | | ????????????????????????? ???????????????????????? | | ????????????????????????? ???????????????????????? | | ????????????????????????? ???????????????????!???? | | ???????????????????????##+##?????????????????????? | | ??????????????????????? ?????????????????????? | | ???????????????????????? ??????????????????????? | | ???????????????????????? " ??????????????????????? | | ???????????????????????? ??????????????????????? | | ???????????????????????? o ??????????????????????? | | ????????????????????????# #??????????????????????? | | #???????????????????????# #??????????????????????? | | #????????????######?????# #??????????????????????? | | #????????????# ] #?????# #??????????????????????? | | #????????????# !#?????#@#??????????????????????? | | +????????????# ] #######%#??????????????????????? | | #????????????# + =!#??????????????????????? | | #????????????# > # %=#??????????????????????? | | #????????????# # ==#??????????????????????? | | #????????????# + g%= #????????????????????? | | #????????????# % ###=%* #????????????????????? | | #????????????# # #?# ! +????????????????????? | | ##############+#### #?# #????????????????????? | | # #?# #?# u #????????????????????? | | # % * #?#/#?## #????????????????????? | | # %""""""""" #? ?? # % #????????????????????? | | # #?"??? + #????+???????????????? | | # """"""""" ]#?"??? # m #????????????????????? | | # % #? ????? #????????????????????? | | # """"""""" #??????? #????+???????????????? | | /! #??????? #????????????????????? | | # """"""""" #??????? ??????????????????????? | | # ?? #????????????????????????????????? | | ###########/?####????????????????????????????????? | | ????????????????????????????????????????????? | | ????????????????????????????????????????????? | | ????????????????????????????????????????????? | | ?????????????????????????????????????????????? | | ?????????????????????????????????????????????? | +----------------------------------------------------+ Best States ------------- Heat Dissipation 84 Energy Generation 18 Energy Capacity 300 Matter Stores 300 Matter Capacity 300 Sight Range 20 Terrain Scan Density 10 Armor Coverage 450 Resistance: TH 10 Evasion (%) 55 Recoil Reduction 4 Offensive Hacking 20 Defensive Hacking 12 Relay Coupler Types 1 Relay Coupler Value 9 Authchip Count 1 Item Schematics ----------------- Lgt. Treads | -9/Materials | Scanalyzed Assault Rifle | -9/Materials | Hacked Hrd. Medium Armor Plating | -8/Materials | Scanalyzed Hacking Suite | -8/Materials | Scanalyzed Imp. Heat Sink | -8/Materials | Scanalyzed Weapon Mount | -8/Materials | Scanalyzed Robot Schematics ------------------ None Fabricated ------------ Nothing Repaired ---------- Lgt. Treads | 38% | -9/Materials Hvy. Assault Rifle | 96% | -8/Materials Adv. Heat Sink | 14% | -8/Materials Lgt. Treads | 6% | -8/Materials Imp. Treads | 2% | -8/Materials Arm. Treads | 29% | -8/Materials Hrd. Medium Armor Plating | 2% | -8/Materials Hvy. Assault Rifle | 6% | -8/Materials Lgt. Treads | 27% | -8/Materials Hrd. Medium Armor Plating | 3% | -7/Factory Studied --------- Lgt. Treads | -9/Materials | Hacked Hvy. Assault Rifle | -8/Materials | Hacked Shock Rifle | -8/Materials | Hacked Gauss Cannon | -7/Factory | Hacked Alien Tech Used ----------------- None Achievements -------------- Construction Begets Destruction Professional Mechanic Challenges ------------ None Game ------ Seed ThrowingDefensePlating Manual? 0 Play Time 01:38:26 Cumulative 123.6 hours Start 2026.03.11 @ 01:55:34 End 2026.03.11 @ 03:46:18 Sessions 1 Manual Loads 0 Difficulty Rogue Special Mode None Game No. 250 Rogue 250 Adventurer 0 Explorer 0 Win Type - Total 3 Types 2/0/0/1/0/0/0/0/0/0 Lore% 58 Gallery% 57 Achievement% 41 Wizard Run 0 Options --------- Layout 2 ASCII 0 Keyboard 1 Movement Numpad Keybinds 0 Fullscreen 1 Font 24/Smallcaps Map View 50x44 Zoom Use 0% Tactical HUD 1 Map Filters NONE Filters NONE Steam 1 RUN: 8c6d368e-21ae-4f68-8282-7b3868614695